bitfinex/quotes_ETHUSD_20251012
["timestamp","ask_amount","ask_price","bid_price","bid_amount"]
[1760262222458,0.001,3838.0,3837.8,2.60565949]
[1760262222658,0.001,3838.0,3837.9,2.60559159]
[1760262222892,0.001,3838.0,3837.9,3.04149159]
[1760262223101,0.001,3838.0,3837.9,3.6191667]
[1760262224261,0.001,3838.0,3837.9,3.04149159]
[1760262226686,0.001,3838.0,3837.9,2.60559159]
[1760262227070,0.001,3838.0,3837.9,3.07479159]
[1760262228278,0.001,3838.0,3837.9,2.60559159]
[1760262230182,0.001,3838.0,3837.9,3.07479159]
[1760262230378,0.001,3838.0,3837.9,3.65580344]
[1760262234293,0.001,3838.0,3837.9,3.18660344]
[1760262234499,0.001,3838.0,3837.9,2.60559159]
[1760262234799,0.001,3838.0,3837.8,2.6056268]
[1760262235557,0.001,3838.0,3837.9,2.60559159]
[1760262236574,0.001,3838.0,3837.8,2.60563741]
[1760262237097,0.001,3838.0,3837.9,2.60559159]
[1760262240565,0.001,3838.0,3837.8,2.60565742]
[1760262240770,0.1012,3838.0,3837.8,2.60565742]
[1760262241166,0.001,3838.0,3837.8,2.60565742]
[1760262242397,0.001,3838.0,3837.6,2.60578497]
[1760262242599,0.1012,3838.0,3837.6,2.60578497]
[1760262242998,0.1012,3838.0,3837.5,0.1296]
[1760262242999,0.001,3838.0,3837.5,0.1296]
[1760262243206,0.001,3838.0,3837.9,2.60559159]
[1760262244818,0.001,3838.0,3837.8,2.60563805]
[1760262245118,0.001,3838.0,3837.7,2.60570589]
[1760262245791,0.001,3838.0,3837.8,2.60565256]
[1760262248495,0.001,3838.0,3837.9,2.60559159]
[1760262249925,0.001,3838.0,3837.9,3.04819159]
[1760262252197,0.001,3838.0,3837.9,3.80758277]
[1760262252397,0.001,3838.0,3837.9,3.93718277]
[1760262255806,0.001,3838.0,3837.9,5.85718277]
[1760262257311,0.001,3838.0,3837.9,5.96167202]
[1760262263515,1e-08,3838.4,3838.3,2.60532006]
[1760262263833,1e-08,3838.4,3838.3,5.238392]
[1760262264039,1e-08,3838.4,3838.3,5.810592]
[1760262264235,1e-08,3838.4,3838.3,5.91506269]
[1760262291494,1e-08,3838.4,3838.3,5.91706269]
[1760262306053,1e-08,3838.4,3838.3,6.81176269]
[1760262307118,0.1259,3842.9,3838.7,5.41974858]
[1760262307347,0.10439952,3842.9,3839.7,3.23795994]
[1760262307551,0.10439952,3842.9,3842.3,2.60258816]
[1760262307861,0.099,3843.5,3842.4,0.6689]
[1760262308015,2.60201044,3843.2,3842.4,0.4375]
[1760262308217,0.78284933,3843.8,3842.5,0.4375]
[1760262308419,2.60180408,3843.5,3842.1,0.2314]
[1760262308679,2.60215787,3843.0,3841.8,0.13631334]
[1760262308832,0.6336,3843.1,3840.1,1.92]
[1760262309152,2.60261716,3842.3,3841.4,2.3575]
[1760262309315,2.60268133,3842.2,3841.4,2.3575]
[1760262309521,2.60267555,3842.2,3841.4,0.4375]
[1760262309721,0.27016756,3842.1,3841.4,0.4375]
[1760262309945,2.70187196,3842.0,3840.9,0.4375]
[1760262310130,2.60294909,3841.8,3840.7,0.4375]
[1760262310461,2.92104251,3841.9,3841.0,1.92]
[1760262310624,2.60296349,3841.8,3841.0,1.92]
[1760262310820,0.29210635,3841.7,3841.0,1.92]
[1760262311237,0.29210635,3841.7,3841.0,2.60346376]
[1760262311541,0.29210635,3841.7,3841.1,1.92]
[1760262312195,0.29210635,3841.7,3841.1,4.52341819]
[1760262312470,0.29210635,3841.7,3841.1,2.60342089]
[1760262312785,0.6336,3842.0,3841.2,2.3575]
[1760262312942,0.6336,3842.1,3841.2,0.4375]
[1760262313141,0.6336,3841.9,3841.2,0.4375]
[1760262313550,0.6336,3841.9,3841.2,3.04084927]
[1760262313761,2.60289347,3841.9,3841.2,0.4375]
[1760262313973,0.26028935,3841.8,3841.2,2.3575]
[1760262314468,0.26028935,3841.8,3841.2,3.0408375]
[1760262314839,0.26028935,3841.8,3841.3,2.60327728]
[1760262315038,0.26028935,3841.8,3841.2,0.4375]
[1760262315242,0.26028935,3841.8,3841.2,3.04084031]
[1760262315462,0.28631334,3841.7,3841.2,3.04084031]
[1760262315840,0.6336,3842.0,3841.3,0.4375]
[1760262316064,0.40819503,3842.7,3841.5,2.60309647]
[1760262316259,0.7326,3842.4,3841.5,2.60309647]
[1760262316684,2.60261227,3842.3,3841.5,2.60309647]
[1760262316995,3.33515992,3842.4,3841.6,2.60306735]
[1760262317213,0.1296,3841.9,3841.6,2.60306735]
[1760262317509,0.1296,3841.9,3841.7,0.4375]
[1760262317664,0.1296,3841.9,3841.7,3.04049569]
[1760262317861,0.21908041,3843.4,3842.1,2.60267675]
[1760262318066,2.60284959,3843.5,3842.3,2.60260781]
[1760262318276,2.60284959,3843.5,3842.2,0.4375]
[1760262318277,0.1296,3843.1,3842.7,2.60231731]
[1760262318477,0.1296,3843.1,3842.7,0.4375]
[1760262318709,0.001,3843.5,3842.8,0.4375]
[1760262318871,0.001,3843.5,3843.4,2.60186293]
[1760262319514,0.001,3843.5,3843.4,4.95936293]
[1760262319972,0.001,3843.5,3843.4,2.3575]
[1760262320381,0.001,3843.5,3843.4,4.95936293]
[1760262320806,0.001,3843.5,3843.4,1.92]
[1760262321268,0.001,3843.5,3843.4,4.95936293]
[1760262323527,0.001,3843.5,3843.4,5.71549729]
[1760262326434,0.001,3843.5,3843.4,4.95936293]
[1760262327945,0.001,3843.5,3843.4,4.96136293]
[1760262328600,0.001,3843.5,3843.4,5.09096293]
[1760262329147,0.001,3843.5,3843.4,5.59496293]
[1760262329310,0.001,3843.9,3843.8,2.60159217]
[1760262329494,0.001,3843.9,3843.8,4.97375139]
[1760262329699,0.001,3843.9,3843.8,5.43995139]
[1760262331111,0.001,3843.9,3843.8,6.07355139]
[1760262334819,0.001,3843.9,3843.8,5.43995139]
[1760262335419,0.001,3843.9,3843.8,3.51995139]
[1760262338312,0.001,3843.9,3843.8,4.15355139]
[1760262339121,0.001,3843.9,3843.8,4.28315139]
[1760262339641,0.001,3843.9,3843.8,6.20315139]
[1760262344930,0.001,3843.9,3843.8,6.07355139]
[1760262348225,0.40776276,3847.3,3844.0,8.659956]
[1760262348427,0.40776276,3847.3,3846.9,2.59944083]
[1760262348636,0.2191,3848.0,3847.0,0.4325]
[1760262348833,2.5990079,3847.7,3846.7,0.2143]
[1760262349034,2.59902307,3847.6,3846.8,2.59954954]
[1760262349237,2.59902307,3847.6,3846.7,2.59961394]
[1760262349429,0.0993,3847.7,3846.8,2.59955525]
[1760262349430,3.12881808,3847.5,3846.8,2.59955525]
[1760262349832,3.12881808,3847.5,3846.7,2.59960754]
[1760262350027,0.0993,3847.4,3846.3,2.5999012]
[1760262350227,0.52972294,3847.5,3846.7,2.59958094]
[1760262350427,0.52972294,3847.5,3846.8,2.59955646]
[1760262350627,0.52972294,3847.5,3846.7,0.4325]
[1760262350628,0.31287474,3847.4,3846.7,0.4325]
[1760262351040,0.52972294,3847.5,3846.8,2.59956102]
[1760262351243,3.12884614,3847.5,3846.7,0.4325]
[1760262351563,2.59909837,3847.5,3846.7,0.4325]
[1760262351771,0.6336,3847.9,3846.9,2.59945107]
[1760262352072,2.59888767,3847.8,3847.0,2.59941573]
[1760262352285,2.59788782,3849.3,3847.2,2.59924886]
[1760262352443,0.099,3848.8,3846.8,1.92]
[1760262352643,2.59880818,3848.0,3846.5,2.59973621]
[1760262352833,0.6336,3848.2,3847.3,2.59920045]
[1760262353037,2.59870795,3848.1,3847.3,3.03170045]
[1760262353336,2.59877457,3848.0,3847.3,0.4325]
[1760262353578,0.32323746,3847.9,3847.3,0.4325]
[1760262354472,2.92207094,3847.9,3847.3,0.4325]
[1760262354994,0.1296,3847.8,3847.3,0.4325]
[1760262355493,0.1296,3847.8,3847.2,2.72886161]
[1760262355794,0.1296,3847.8,3847.3,0.4518]
[1760262356296,0.27284373,3847.7,3847.3,0.4518]
[1760262357171,0.27284373,3847.7,3846.2,0.4518]
[1760262357359,0.1296,3847.4,3846.8,2.0496]
[1760262357762,0.1002,3847.3,3846.5,1.92]
[1760262357958,0.1296,3847.8,3847.2,0.1296]
[1760262358316,0.1296,3847.8,3847.3,0.4518]
[1760262358464,0.1296,3847.8,3847.2,0.1296]
[1760262358664,0.1296,3847.8,3847.2,2.72889188]
[1760262358865,0.1296,3847.8,3847.4,2.59914188]
[1760262359164,0.1296,3847.8,3847.5,2.59907248]
[1760262359368,0.1296,3847.8,3847.6,2.59901604]
[1760262359998,0.1296,3847.8,3847.5,2.59907548]
[1760262360207,0.1296,3847.8,3847.4,2.59914391]
[1760262360499,0.1296,3847.8,3847.6,2.59898132]
[1760262360798,0.1296,3848.2,3847.6,0.1296]
[1760262360981,0.1296,3848.2,3847.9,2.59877535]
[1760262361217,0.1296,3848.2,3848.0,0.4518]
[1760262361523,0.1296,3848.2,3847.8,2.59886614]
[1760262361828,0.1296,3848.2,3847.9,2.59880755]
[1760262362344,0.1296,3848.2,3847.8,2.59887368]
[1760262362698,0.1296,3848.2,3847.9,2.59881471]
[1760262363028,0.1296,3848.2,3847.8,3.05068474]
[1760262363193,0.1296,3848.2,3847.9,2.59880968]
[1760262364095,0.1296,3848.2,3847.9,3.05060968]
[1760262364929,0.1296,3848.2,3847.9,0.4518]
[1760262365330,0.001,3848.2,3848.0,2.59869599]
[1760262365623,0.001,3848.2,3848.1,2.59868506]
[1760262365839,0.001,3848.2,3847.8,0.1296]
[1760262366008,0.001,3848.2,3848.0,2.59870642]
[1760262366404,0.001,3848.2,3848.0,3.05050642]
[1760262366631,0.001,3848.2,3848.1,2.59868506]
[1760262366794,0.001,3848.2,3848.0,0.4518]
[1760262366993,0.001,3848.2,3848.1,2.59868506]
[1760262367239,0.001,3848.2,3848.0,3.18013978]
[1760262367439,0.001,3848.2,3848.0,2.72833978]
[1760262367639,0.001,3848.2,3848.0,2.72834086]
[1760262367998,0.001,3848.2,3848.0,0.1296]
[1760262368199,0.001,3848.2,3848.0,2.72833364]
[1760262368728,0.001,3848.2,3848.0,0.1296]
[1760262368928,0.001,3848.2,3848.0,2.72834322]
[1760262369448,0.001,3848.2,3848.1,2.59868506]
[1760262369753,0.001,3848.2,3848.1,0.4518]
[1760262370051,0.001,3848.2,3848.0,2.72832827]
[1760262370451,0.001,3848.2,3848.0,0.1296]
[1760262372516,0.1024,3848.2,3847.3,0.4518]
[1760262372715,0.1306,3848.2,3847.6,0.1296]
[1760262372917,2.72821767,3848.2,3847.6,0.1296]
[1760262373324,2.59868661,3848.1,3847.6,0.1296]
[1760262373638,2.59913457,3847.5,3846.8,2.59951969]
[1760262373952,0.1296,3847.3,3846.8,2.59955486]
[1760262374138,2.7288551,3847.3,3846.6,0.1296]
[1760262374348,0.66239475,3847.3,3846.7,2.5996304]
[1760262374652,0.66239475,3847.3,3846.6,2.7292859]
[1760262374859,0.66239475,3847.3,3846.7,2.59961635]
[1760262375432,3.26164268,3847.3,3846.6,2.7292803]
[1760262376060,2.59931068,3847.2,3846.6,0.1296]
[1760262376299,3.261629,3847.3,3846.6,2.72929832]
[1760262376449,0.66239475,3847.3,3846.7,2.59960303]
[1760262376650,3.26163652,3847.3,3846.7,2.59960303]
[1760262376947,3.26163652,3847.3,3846.7,2.59962388]
[1760262377577,0.66239475,3847.3,3846.7,2.59962388]
[1760262377781,3.26163639,3847.3,3846.7,2.59962388]
[1760262378175,2.9357115,3847.2,3846.6,0.1296]
[1760262378582,3.0382115,3847.2,3846.6,2.72928799]
[1760262379157,3.0382115,3847.2,3846.6,0.1296]
[1760262379550,2.7018875,3847.1,3846.6,0.1296]
[1760262379982,0.1025,3847.0,3846.6,0.1296]
[1760262380175,0.1025,3846.9,3846.6,0.1296]
[1760262380384,0.1025,3846.8,3846.6,0.1296]
[1760262380857,0.1025,3846.7,3846.6,0.1296]
[1760262381056,0.1025,3846.7,3846.4,2.72942409]
[1760262381287,0.1025,3846.6,3846.4,0.1296]
[1760262381497,0.1025,3846.9,3846.4,0.1296]
[1760262381799,0.1025,3846.6,3846.4,0.1296]
[1760262381953,0.32015851,3846.8,3846.4,0.1296]
[1760262382153,0.1296,3846.7,3846.1,2.0496]
[1760262382409,0.1025,3846.6,3846.1,2.0496]
[1760262382584,0.1296,3846.7,3846.1,0.1296]
[1760262382754,0.6336,3848.0,3846.1,0.4518]
[1760262382961,0.1296,3846.9,3846.3,2.72944369]
[1760262383186,0.1296,3846.9,3846.4,2.59978936]
[1760262383732,0.2321,3846.9,3846.3,0.1296]
[1760262384030,0.2321,3846.9,3846.1,3.05178977]
[1760262384031,2.59962303,3846.8,3846.1,3.05178977]
[1760262384318,0.1296,3846.7,3846.2,2.59995882]
[1760262385534,0.1296,3846.7,3846.1,0.1296]
[1760262385695,2.59927252,3847.3,3846.5,2.59972709]
[1760262386012,0.1296,3846.9,3846.6,2.59968103]
[1760262386195,0.1296,3846.9,3846.5,2.59974319]
[1760262386399,0.1296,3846.9,3846.3,0.5652]
[1760262386655,0.1025,3847.2,3846.7,0.1296]
[1760262386794,0.1025,3847.1,3845.7,1.92]
[1760262386996,2.7292041,3846.8,3846.1,0.1296]
[1760262387408,2.70213414,3846.7,3846.1,2.0496]
[1760262387609,0.1025,3846.6,3846.1,0.1296]
[1760262387828,0.1025,3846.5,3845.8,2.60019567]
[1760262388012,0.1025,3846.4,3845.9,0.1296]
[1760262388210,2.72938051,3846.5,3845.9,0.1296]
[1760262388492,0.1025,3846.4,3845.9,2.72974823]
[1760262388692,0.1296,3846.5,3846.0,2.60010331]
[1760262389095,0.1025,3846.4,3845.9,2.72974533]
[1760262389740,0.1025,3846.3,3845.9,0.1296]
[1760262390108,0.1025,3846.3,3845.9,2.72976847]
[1760262390703,0.1025,3846.3,3846.0,2.60009845]
[1760262390923,0.1296,3846.5,3846.1,2.60003202]
[1760262391142,0.2321,3846.5,3846.0,2.600104]
[1760262391545,0.2321,3846.5,3845.9,2.72975742]
[1760262391741,0.2321,3846.5,3846.0,2.60008665]
[1760262392738,0.2321,3846.5,3845.9,2.72975306]
[1760262392941,0.2321,3846.5,3846.0,2.60009955]
[1760262393311,0.1296,3846.5,3846.1,0.4356]
[1760262393506,0.7361,3847.3,3846.4,2.59978728]
[1760262393507,0.1296,3846.8,3846.4,2.59978728]
[1760262393855,0.1296,3847.1,3846.5,0.4356]
[1760262394152,0.1296,3847.1,3846.7,2.59958167]
[1760262394839,0.1296,3847.1,3846.4,2.72942108]
[1760262395007,2.59955574,3846.9,3846.1,2.60001472]
[1760262395208,0.1296,3846.6,3846.1,2.60001472]
[1760262395533,0.1025,3846.5,3846.2,2.59996598]
[1760262395711,0.1296,3846.6,3846.2,2.59996598]
[1760262395906,0.1025,3846.5,3846.2,2.59996598]
[1760262396240,0.1025,3846.4,3846.3,2.59989759]
[1760262396742,0.1296,3846.6,3846.4,2.59982458]
[1760262396938,0.1025,3846.5,3846.4,2.59982458]
[1760262397137,0.1025,3846.5,3846.1,2.60000911]
[1760262397138,0.1025,3846.5,3846.3,2.59989405]
[1760262397540,0.1025,3846.4,3846.3,2.59989405]
[1760262399446,0.1296,3846.6,3846.3,2.59989405]
[1760262399650,0.1025,3846.5,3846.3,2.59989405]
[1760262400423,0.1296,3846.6,3846.2,2.59994679]
[1760262400618,0.1025,3846.4,3846.2,2.59994679]
[1760262400839,0.1025,3846.3,3845.9,0.1296]
[1760262401036,0.1025,3846.2,3846.0,2.60006766]
[1760262401356,0.1025,3846.2,3846.1,2.6000364]
[1760262401656,0.1025,3846.2,3846.0,2.60008976]
[1760262401838,0.6336,3846.5,3845.9,0.1296]
[1760262402151,0.6336,3846.5,3845.2,0.1296]
[1760262402152,0.1296,3845.9,3845.2,0.1296]
[1760262402352,0.1954,3845.8,3845.2,2.73022486]
[1760262402657,0.232,3845.7,3845.2,0.1296]
[1760262402862,0.1024,3845.6,3845.2,0.1296]
[1760262403033,0.1024,3845.5,3845.2,0.1296]
[1760262403234,2.73026228,3845.2,3844.3,0.1296]
[1760262403556,0.29252983,3845.6,3844.8,2.60089619]
[1760262403557,0.1296,3845.0,3844.8,2.60089619]
[1760262403943,0.1296,3845.0,3844.6,2.60099803]
[1760262404119,0.1296,3845.0,3844.5,2.60111703]
[1760262404640,0.1296,3845.0,3844.3,0.1296]
[1760262404840,0.1024,3844.9,3844.3,0.1296]
[1760262405456,0.1024,3844.9,3844.5,2.60111555]
[1760262406659,0.1296,3845.0,3844.3,0.6013]
[1760262406957,0.1296,3845.0,3844.8,2.60088526]
[1760262407358,0.1296,3845.0,3844.7,2.60097922]
[1760262407569,0.1296,3845.0,3844.3,0.1296]
[1760262407570,0.1296,3845.0,3844.5,2.60111631]
[1760262408450,0.1296,3845.0,3844.6,2.60103615]
[1760262409159,0.1296,3845.0,3844.3,0.1296]
[1760262409327,0.1024,3844.9,3844.4,2.60115895]
[1760262409662,0.1296,3845.0,3844.4,2.60115991]
[1760262409985,0.232,3845.0,3844.4,2.60115991]
[1760262411160,0.1024,3844.9,3844.3,2.73082764]
[1760262411375,0.1024,3844.9,3844.4,2.60117808]
[1760262412069,0.1024,3844.9,3844.5,2.60111587]
[1760262412272,0.1024,3844.8,3844.5,2.60111587]
[1760262412951,0.1024,3844.7,3844.5,2.60111587]
[1760262413786,0.1024,3844.6,3843.9,0.002]
[1760262413989,0.1296,3844.3,3843.9,0.002]
[1760262414190,2.73086377,3844.3,3843.9,0.002]
[1760262414686,0.1296,3844.3,3843.9,0.002]
[1760262414890,0.1024,3844.2,3843.9,0.002]
[1760262415185,0.1296,3844.3,3844.1,2.60137154]
[1760262415386,0.1296,3844.3,3844.0,2.60143452]
[1760262415591,0.1296,3844.3,3843.9,2.60350243]
[1760262415997,0.1296,3844.3,3844.0,2.6014512]
[1760262416166,0.1024,3845.2,3844.0,0.474]
[1760262416369,2.6005204,3845.4,3844.6,2.60098399]
[1760262416370,2.70293128,3845.4,3844.6,2.60098399]
[1760262416584,2.70293128,3845.4,3844.1,2.82584051]
[1760262416585,0.1296,3845.0,3844.7,2.60093438]
[1760262417388,0.1296,3845.0,3844.6,2.60103587]
[1760262417590,0.1296,3845.0,3844.7,2.60097907]
[1760262418476,0.1296,3845.0,3844.8,2.60090146]
[1760262418694,0.1296,3845.0,3844.9,2.60084787]
[1760262419184,0.1296,3845.0,3844.8,2.6008971]
[1760262420283,0.1296,3845.0,3844.7,2.60097283]
[1760262420470,0.1024,3844.9,3844.2,0.1296]
[1760262420677,0.736,3845.7,3844.9,2.60084787]
[1760262420878,0.1296,3845.2,3845.1,2.60069496]
[1760262421388,0.1296,3845.2,3845.0,2.60077595]
[1760262422464,0.1296,3845.2,3845.0,2.60075873]
[1760262422893,0.1296,3845.2,3845.1,2.60071259]
[1760262423499,0.1024,3846.1,3845.1,0.474]
[1760262423703,0.1023,3846.0,3844.6,0.474]
[1760262423904,0.1955,3845.9,3845.1,2.60066421]
[1760262424066,0.6336,3845.6,3845.0,2.60077672]
[1760262424271,0.099,3845.5,3844.8,2.60089001]
[1760262424474,0.33329815,3845.4,3844.9,2.60083664]
[1760262424804,0.099,3845.3,3844.4,0.002]
[1760262425097,0.099,3845.3,3844.9,2.60080198]
[1760262425298,0.33329815,3845.4,3844.9,2.60080198]
[1760262425497,0.099,3845.2,3844.8,2.60086876]
[1760262425670,0.099,3845.1,3844.8,2.60086876]
[1760262426171,2.60111848,3844.5,3844.4,0.002]
[1760262426570,2.70011848,3844.5,3844.4,0.002]
[1760262426767,3.86383413,3844.5,3844.4,0.002]
[1760262429405,5.78383413,3844.5,3844.4,0.002]
[1760262429721,6.19189666,3844.5,3844.4,0.002]
[1760262433577,5.78383413,3844.5,3844.4,0.002]
[1760262435015,5.88820559,3844.5,3844.4,0.002]
[1760262436429,6.29625447,3844.5,3844.4,0.002]
[1760262439937,5.88820559,3844.5,3844.4,0.002]
[1760262440350,5.15023413,3844.5,3844.4,0.002]
[1760262440507,5.78383413,3844.5,3844.4,0.002]
[1760262443123,6.19188293,3844.5,3844.4,0.002]
[1760262446839,6.14188293,3844.5,3844.4,0.002]
[1760262450126,6.14188293,3844.5,3844.0,1e-08]
[1760262450127,5.15498914,3844.1,3844.0,1e-08]
[1760262450540,0.099,3844.4,3844.0,1e-08]
[1760262450726,2.60136579,3844.2,3844.0,1e-08]
[1760262450928,0.099,3844.1,3844.0,1e-08]
[1760262451470,0.7326,3844.1,3844.0,1e-08]
[1760262452243,3.33398914,3844.1,3844.0,1e-08]
[1760262452639,3.92751526,3844.1,3844.0,1e-08]
[1760262453797,4.33558657,3844.1,3844.0,1e-08]
[1760262454292,3.74206045,3844.1,3844.0,1e-08]
[1760262454458,0.7326,3844.1,3844.0,1e-08]
[1760262454645,3.33398914,3844.1,3844.0,1e-08]
[1760262456570,5.25398914,3844.1,3844.0,1e-08]
[1760262458949,2.70038914,3844.1,3844.0,1e-08]
[1760262459563,3.33398914,3844.1,3844.0,1e-08]
[1760262459973,4.1603181,3844.1,3844.0,1e-08]
[1760262461652,3.33398914,3844.1,3844.0,1e-08]
[1760262463700,2.70029581,3844.3,3844.0,1e-08]
[1760262463904,0.099,3844.3,3844.0,1e-08]
[1760262464066,2.60124738,3844.4,3844.0,1e-08]
[1760262464467,0.099,3844.2,3844.0,1e-08]
[1760262464984,2.60126173,3844.3,3844.0,1e-08]
[1760262464985,0.6336,3844.3,3844.0,1e-08]
[1760262465369,0.099,3844.2,3844.0,1e-08]
[1760262465976,3.33398914,3844.1,3844.0,1e-08]
[1760262467491,5.25398914,3844.1,3844.0,1e-08]
[1760262474980,0.10436956,3844.7,3844.0,1e-08]
[1760262475181,2.60138914,3844.1,3844.0,1e-08]
[1760262476698,2.60238914,3844.1,3844.0,1e-08]
[1760262476896,3.23598914,3844.1,3844.0,1e-08]
[1760262477496,4.12064113,3844.1,3844.0,1e-08]
[1760262484429,3.48704113,3844.1,3844.0,1e-08]
[1760262484596,2.60238914,3844.1,3844.0,1e-08]
[1760262485423,3.23598914,3844.1,3844.0,1e-08]
[1760262504026,3.64404453,3844.1,3844.0,1e-08]
[1760262510637,3.23598914,3844.1,3844.0,1e-08]
[1760262513967,3.64408479,3844.1,3844.0,1e-08]
[1760262514370,4.5392802,3844.1,3844.0,1e-08]
[1760262515204,4.13118455,3844.1,3844.0,1e-08]
[1760262515401,4.23556718,3844.1,3844.0,1e-08]
[1760262515604,4.13118455,3844.1,3844.0,1e-08]
[1760262517397,6.05118455,3844.1,3844.0,1e-08]
[1760262517596,6.05118455,3844.1,3843.1,1e-08]
[1760262517597,3.23559833,3843.2,3843.1,1e-08]
[1760262517810,3.55915816,3843.2,3843.1,1e-08]
[1760262517993,3.81105816,3843.2,3843.1,1e-08]
[1760262518184,4.21923489,3843.2,3843.1,1e-08]
[1760262520718,3.81105816,3843.2,3843.1,1e-08]
[1760262521416,5.73105816,3843.2,3843.1,1e-08]
[1760262523883,6.13922418,3843.2,3843.1,1e-08]
[1760262530123,5.28526604,3843.1,3843.0,0.00100001]
[1760262530344,6.43254672,3843.1,3843.0,0.00100001]
[1760262530527,6.68444672,3843.1,3843.0,0.00100001]
[1760262537527,7.09261837,3843.1,3843.0,0.00100001]
[1760262539746,3.23566604,3843.1,3843.0,0.00100001]
[1760262539946,3.33466604,3843.1,3843.0,0.00100001]
[1760262540819,5.25466604,3843.1,3843.0,0.00100001]
[1760262542169,5.15586917,3842.8,3842.7,1e-08]
[1760262542675,5.25486917,3842.8,3842.7,1e-08]
[1760262542949,6.70903837,3842.8,3842.7,1e-08]
[1760262545028,7.03127573,3842.8,3842.7,1e-08]
[1760262545228,3.23614007,3842.4,3842.3,0.002]
[1760262545549,5.15614007,3842.4,3842.3,0.002]
[1760262545718,5.25514007,3842.4,3842.3,0.002]
[1760262545914,7.26472611,3842.4,3842.3,0.002]
[1760262546361,7.58696347,3842.4,3842.3,0.002]
[1760262546558,7.87449736,3842.4,3842.3,0.002]
[1760262547221,0.6336,3841.7,3838.9,0.4659]
[1760262547415,2.60461959,3839.4,3838.5,2.60518431]
[1760262547729,2.60461959,3839.4,3838.6,3.17293548]
[1760262548120,2.60461959,3839.4,3838.7,1.92]
[1760262548325,2.81910966,3839.5,3838.7,4.52502073]
[1760262548654,2.81910966,3839.5,3838.7,2.60502073]
[1760262549247,2.70477738,3839.4,3838.7,2.60502073]
[1760262549448,2.70477738,3839.4,3838.8,0.50928594]
[1760262550474,0.1002,3839.4,3838.8,0.50928594]
[1760262550646,2.70478167,3839.4,3838.8,0.50928594]
[1760262551380,0.2158,3839.8,3838.9,2.60491286]
[1760262551676,2.60448307,3839.6,3838.9,2.60491286]
[1760262551883,2.60448307,3839.6,3839.0,0.55000988]
[1760262552580,2.60429249,3839.9,3839.1,2.60472686]
[1760262552783,0.40848599,3840.2,3839.2,0.4659]
[1760262552948,2.81847834,3840.5,3839.2,0.4659]
[1760262553150,2.60402795,3840.3,3839.5,2.60445749]
[1760262553468,2.60402795,3840.3,3839.6,3.12534676]
[1760262554947,2.81843261,3840.5,3839.6,0.5209099]
[1760262554948,2.60403865,3840.2,3839.6,0.5209099]
[1760262555354,2.60398442,3840.3,3839.6,3.12534249]
[1760262555607,2.70410074,3840.4,3839.7,2.60432315]
[1760262555948,2.60396407,3840.3,3839.7,2.60432315]
[1760262556150,2.60396407,3840.3,3839.8,0.5729729]
[1760262556876,2.60403417,3840.2,3839.8,0.5729729]
[1760262557086,0.1296,3839.8,3839.6,2.60441438]
[1760262557252,2.60403417,3840.2,3839.6,3.07031438]
[1760262557859,0.2135,3841.3,3840.1,0.223]
[1760262558058,0.2135,3841.3,3840.2,0.4659]
[1760262558259,2.81682612,3841.3,3840.6,2.6037486]
[1760262558806,2.60335604,3841.2,3840.6,2.6037486]
[1760262559681,2.60335604,3841.2,3840.5,2.60380466]
[1760262559885,2.6034904,3841.0,3840.1,0.223]
[1760262560198,2.70477817,3841.1,3840.1,2.82706894]
[1760262560396,2.70477817,3841.1,3840.4,2.60388407]
[1760262560767,2.70472439,3841.1,3840.5,2.60381428]
[1760262561106,2.70472322,3841.1,3840.4,2.60388515]
[1760262561780,0.40835111,3841.1,3840.6,2.60371818]
[1760262561962,0.40835111,3841.1,3840.5,1.92]
[1760262562163,2.6030286,3841.7,3841.0,2.60347095]
[1760262562366,2.70197353,3841.8,3841.1,2.60340819]
[1760262562762,2.70195435,3841.8,3841.1,2.60340819]
[1760262562967,2.60295435,3841.8,3841.1,2.60340819]
[1760262563273,2.60302269,3841.7,3841.1,2.60340819]
[1760262563681,2.60302269,3841.7,3841.0,2.6034709]
[1760262564307,2.60310562,3841.6,3841.0,2.6034709]
[1760262564494,2.60301977,3841.7,3841.0,2.6034709]
[1760262565071,2.60301977,3841.7,3841.1,2.60341393]
[1760262565266,0.40832792,3842.3,3841.1,3.17070482]
[1760262565472,2.6027388,3842.2,3841.3,2.60322958]
[1760262565700,0.50732792,3842.3,3841.5,2.60311305]
[1760262565898,2.60267984,3842.2,3841.5,2.60311305]
[1760262566479,2.6027659,3842.1,3841.4,3.07479101]
[1760262566784,2.60281195,3842.0,3841.4,2.60319101]
[1760262567396,2.6027613,3842.1,3841.4,2.60319101]
[1760262569724,2.60282335,3842.0,3840.7,2.60362832]
[1760262569931,0.1296,3841.2,3840.9,1.92]
[1760262570089,2.60306311,3841.7,3841.0,4.52343721]
[1760262570726,2.60306311,3841.7,3841.1,2.60341314]
[1760262571111,0.1296,3841.1,3841.0,2.60346224]
[1760262571287,0.1296,3840.9,3840.5,2.60381072]
[1760262571647,0.1296,3840.9,3840.4,0.002]
[1760262571788,0.099,3841.1,3840.4,0.002]
[1760262571994,2.60349604,3841.0,3840.4,0.002]
[1760262572403,2.70244631,3841.1,3840.4,0.002]
[1760262572619,2.60354104,3841.0,3840.4,0.002]
[1760262572808,2.6035784,3840.9,3840.4,0.002]
[1760262573009,2.60362461,3840.8,3840.4,0.002]
[1760262573210,2.60370618,3840.7,3840.4,0.002]
[1760262573900,2.60382762,3840.5,3840.4,0.002]
[1760262574628,2.70282762,3840.5,3840.4,0.002]
[1760262575326,3.867081,3840.5,3840.4,0.002]
[1760262575533,6.19550424,3840.5,3840.4,0.002]
[1760262575733,3.23797013,3839.7,3839.6,0.002]
[1760262575947,5.15797013,3839.7,3839.6,0.002]
[1760262576241,3.33697013,3839.7,3839.6,0.002]
[1760262576437,4.12309575,3839.7,3839.6,0.002]
[1760262576932,6.45165779,3839.7,3839.6,0.002]
[1760262580540,6.55617379,3839.7,3839.6,0.002]
[1760262586212,5.15824147,3839.3,3839.2,1e-08]
[1760262586696,5.25724147,3839.3,3839.2,1e-08]